[Event "*** SCC Grand Prix: Titled Tuesday Blitz"]
[Site "Chess.com"]
[Date "2020.06.23"]
[Round "4"]
[White "elamier"]
[Black "skoularikii"]
[Result "1-0"]
[WhiteElo "2330"]
[BlackElo "2495"]
[TimeControl "180+1"]
[EndTime "10:39:58 PDT"]
[Termination "elamier won by checkmate"]

1. d4 {[%clk 0:03:00.9]} 1... d5 {[%clk 0:02:58.9]} 2. Nf3 {[%clk 0:02:59.6]}
2... Nf6 {[%clk 0:02:54.1]} 3. e3 {[%clk 0:02:59.3]} 3... c5 {[%clk 0:02:52.7]}
4. c3 {[%clk 0:02:58.7]} 4... e6 {[%clk 0:02:50]} 5. Nbd2 {[%clk 0:02:57.2]}
5... b6 {[%clk 0:02:50.2]} 6. Bb5+ {[%clk 0:02:53.9]} 6... Bd7 {[%clk 0:02:47]}
7. Bd3 {[%clk 0:02:53.6]} 7... Nc6 {[%clk 0:02:45.6]} 8. O-O {[%clk 0:02:51.9]}
8... Bd6 {[%clk 0:02:41.7]} 9. Re1 {[%clk 0:02:42.6]} 9... cxd4 {[%clk 0:02:38]}
10. exd4 {[%clk 0:02:40.6]} 10... Qc7 {[%clk 0:02:33.3]} 11. Qe2 {[%clk
0:02:39.8]} 11... Nh5 {[%clk 0:02:25.9]} 12. Nf1 {[%clk 0:02:34.9]} 12... Nf4
{[%clk 0:02:24.1]} 13. Bxf4 {[%clk 0:02:32.9]} 13... Bxf4 {[%clk 0:02:25]} 14.
Ne5 {[%clk 0:02:30.9]} 14... Nxe5 {[%clk 0:02:14]} 15. dxe5 {[%clk 0:02:29.9]}
15... h5 {[%clk 0:01:55.2]} 16. g3 {[%clk 0:02:27.1]} 16... Bg5 {[%clk 0:01:55]}
17. h4 {[%clk 0:02:26]} 17... Be7 {[%clk 0:01:54.5]} 18. f4 {[%clk 0:02:18.3]}
18... g6 {[%clk 0:01:52.2]} 19. Kh2 {[%clk 0:02:17.4]} 19... Kf8 {[%clk
0:01:50.1]} 20. Nd2 {[%clk 0:02:16.9]} 20... Kg7 {[%clk 0:01:50.2]} 21. Nf3
{[%clk 0:02:16.4]} 21... a6 {[%clk 0:01:45.4]} 22. Bxa6 {[%clk 0:02:07.7]} 22...
Ra7 {[%clk 0:01:16.7]} 23. Bd3 {[%clk 0:02:06.4]} 23... Rha8 {[%clk 0:01:17]}
24. a3 {[%clk 0:02:06.4]} 24... Ra4 {[%clk 0:01:12.6]} 25. Rad1 {[%clk
0:02:02.2]} 25... R4a5 {[%clk 0:01:08.1]} 26. Nd4 {[%clk 0:02:01.5]} 26... Bc5
{[%clk 0:01:07]} 27. Rc1 {[%clk 0:01:58.7]} 27... Be7 {[%clk 0:01:05.7]} 28. Rf1
{[%clk 0:01:50.7]} 28... R5a7 {[%clk 0:01:05.8]} 29. Rf2 {[%clk 0:01:42.3]}
29... Rh8 {[%clk 0:01:05.2]} 30. Rcf1 {[%clk 0:01:40.8]} 30... Raa8 {[%clk
0:01:05.7]} 31. Re1 {[%clk 0:01:04]} 31... Bc5 {[%clk 0:01:05.7]} 32. Ref1
{[%clk 0:01:02.4]} 32... Bxd4 {[%clk 0:01:03.1]} 33. cxd4 {[%clk 0:01:02]} 33...
Rhc8 {[%clk 0:01:04]} 34. Qe3 {[%clk 0:01:00.6]} 34... Qd8 {[%clk 0:01:03.4]}
35. Kg2 {[%clk 0:00:59.2]} 35... b5 {[%clk 0:01:03.2]} 36. Rc2 {[%clk
0:00:56.8]} 36... Qb6 {[%clk 0:01:02.1]} 37. Rfc1 {[%clk 0:00:55.6]} 37... Rxc2+
{[%clk 0:01:01.2]} 38. Rxc2 {[%clk 0:00:55.5]} 38... Ra4 {[%clk 0:01:01.4]} 39.
Rc5 {[%clk 0:00:50.3]} 39... b4 {[%clk 0:01:01.8]} 40. f5 {[%clk 0:00:32.1]}
40... exf5 {[%clk 0:00:53.8]} 41. Kh2 {[%clk 0:00:23.8]} 41... bxa3 {[%clk
0:00:52.9]} 42. bxa3 {[%clk 0:00:23.8]} 42... Rxa3 {[%clk 0:00:52.7]} 43. Rxd5
{[%clk 0:00:19.7]} 43... Qb2+ {[%clk 0:00:43.8]} 44. Qe2 {[%clk 0:00:19.3]}
44... Qb3 {[%clk 0:00:41.8]} 45. e6 {[%clk 0:00:17.8]} 45... Bxe6 {[%clk
0:00:36]} 46. Qe5+ {[%clk 0:00:16.5]} 46... f6 {[%clk 0:00:18]} 47. Qxe6 {[%clk
0:00:14.1]} 47... Ra2+ {[%clk 0:00:17]} 48. Kh3 {[%clk 0:00:13.6]} 48... Qxd3
{[%clk 0:00:17.3]} 49. Qe7+ {[%clk 0:00:09]} 49... Kh6 {[%clk 0:00:17.7]} 50.
Qf8+ {[%clk 0:00:09.1]} 50... Kh7 {[%clk 0:00:18.3]} 51. Rd7# {[%clk 0:00:09.6]}
1-0

[Event "*** SCC Grand Prix: Titled Tuesday Blitz"]
[Site "Chess.com"]
[Date "2020.06.23"]
[Round "4"]
[White "nrvisakh"]
[Black "Matveev_Vladimir"]
[Result "1-0"]
[WhiteElo "2783"]
[BlackElo "2542"]
[TimeControl "180+1"]
[EndTime "10:39:59 PDT"]
[Termination "nrvisakh won by resignation"]

1. d4 {[%clk 0:03:00.9]} 1... Nf6 {[%clk 0:02:59.9]} 2. c4 {[%clk 0:03:01.2]}
2... g6 {[%clk 0:03:00.3]} 3. Nc3 {[%clk 0:03:00.9]} 3... Bg7 {[%clk 0:03:00.8]}
4. e4 {[%clk 0:03:01.1]} 4... O-O {[%clk 0:03:01.3]} 5. Be2 {[%clk 0:03:01.2]}
5... d6 {[%clk 0:03:01.7]} 6. Be3 {[%clk 0:03:01.4]} 6... a5 {[%clk 0:03:01]} 7.
g4 {[%clk 0:02:57.6]} 7... e5 {[%clk 0:03:00.9]} 8. d5 {[%clk 0:02:55.4]} 8...
Na6 {[%clk 0:03:00]} 9. h4 {[%clk 0:02:48.6]} 9... Nc5 {[%clk 0:02:59.3]} 10. f3
{[%clk 0:02:48]} 10... h5 {[%clk 0:02:59.2]} 11. g5 {[%clk 0:02:48.2]} 11... Nh7
{[%clk 0:02:59.4]} 12. Qd2 {[%clk 0:02:23.3]} 12... f6 {[%clk 0:02:41.3]} 13.
Nh3 {[%clk 0:02:23.2]} 13... Bxh3 {[%clk 0:02:32.8]} 14. Rxh3 {[%clk 0:02:24.1]}
14... fxg5 {[%clk 0:02:33.1]} 15. hxg5 {[%clk 0:02:24.3]} 15... a4 {[%clk
0:02:32.6]} 16. O-O-O {[%clk 0:02:23.5]} 16... Rf4 {[%clk 0:02:29.1]} 17. Rg3
{[%clk 0:02:14.5]} 17... Rh4 {[%clk 0:02:19.1]} 18. Rg2 {[%clk 0:02:07.1]} 18...
b6 {[%clk 0:02:11.2]} 19. Nb5 {[%clk 0:02:02.7]} 19... Qe7 {[%clk 0:02:08.3]}
20. Kb1 {[%clk 0:02:02.8]} 20... Rf8 {[%clk 0:02:03.8]} 21. Qc2 {[%clk
0:02:00.7]} 21... Rh3 {[%clk 0:02:02.4]} 22. Rf1 {[%clk 0:01:58.2]} 22... Rf4
{[%clk 0:01:54.1]} 23. Nc3 {[%clk 0:01:41.5]} 23... Nxg5 {[%clk 0:01:46.8]} 24.
Bxf4 {[%clk 0:01:37.9]} 24... exf4 {[%clk 0:01:47.7]} 25. e5 {[%clk 0:01:38.1]}
25... Kh7 {[%clk 0:01:27]} 26. Rfg1 {[%clk 0:01:35.4]} 26... Rg3 {[%clk
0:01:21.3]} 27. Rxg3 {[%clk 0:01:35.2]} 27... fxg3 {[%clk 0:01:22.2]} 28. f4
{[%clk 0:01:35.2]} 28... Nh3 {[%clk 0:01:19.3]} 29. Rxg3 {[%clk 0:01:34.4]}
29... Nxf4 {[%clk 0:01:19.6]} 30. e6 {[%clk 0:01:25.4]} 30... Qf6 {[%clk
0:01:15.4]} 31. Bd1 {[%clk 0:01:20.7]} 31... b5 {[%clk 0:00:52.5]} 32. Nxb5
{[%clk 0:01:18.2]} 32... a3 {[%clk 0:00:48.7]} 33. Nxc7 {[%clk 0:01:13.5]} 33...
Qd8 {[%clk 0:00:33.3]} 34. Nb5 {[%clk 0:00:59.1]} 34... axb2 {[%clk 0:00:30.6]}
35. Rf3 {[%clk 0:00:48.5]} 35... Be5 {[%clk 0:00:21.6]} 36. a4 {[%clk
0:00:32.7]} 36... Qa5 {[%clk 0:00:18]} 37. e7 {[%clk 0:00:27.3]} 37... Nxa4
{[%clk 0:00:15.9]} 38. Qxa4 {[%clk 0:00:18.8]} 38... Qd2 {[%clk 0:00:15.8]} 39.
Qc2 {[%clk 0:00:18.3]} 39... Qa5 {[%clk 0:00:15.5]} 40. Na3 {[%clk 0:00:15.3]}
40... Qa8 {[%clk 0:00:09.5]} 41. Qa4 {[%clk 0:00:06.2]} 1-0

[Event "*** SCC Grand Prix: Titled Tuesday Blitz"]
[Site "Chess.com"]
[Date "2020.06.23"]
[Round "4"]
[White "zurzan"]
[Black "alexsergeyev"]
[Result "0-1"]
[WhiteElo "1937"]
[BlackElo "2376"]
[TimeControl "180+1"]
[EndTime "10:40:00 PDT"]
[Termination "alexsergeyev won by checkmate"]

1. f4 {[%clk 0:03:00.9]} 1... d5 {[%clk 0:02:58.2]} 2. Nf3 {[%clk 0:03:00.6]}
2... Nh6 {[%clk 0:02:56.3]} 3. g3 {[%clk 0:03:00.4]} 3... Bg4 {[%clk 0:02:54.7]}
4. Bg2 {[%clk 0:03:00.1]} 4... e6 {[%clk 0:02:54.7]} 5. O-O {[%clk 0:02:59.7]}
5... c5 {[%clk 0:02:52.7]} 6. h3 {[%clk 0:02:59.7]} 6... Bxf3 {[%clk 0:02:51.7]}
7. Bxf3 {[%clk 0:03:00.6]} 7... Nc6 {[%clk 0:02:48]} 8. d3 {[%clk 0:02:58.5]}
8... Nf5 {[%clk 0:02:44.7]} 9. Qe1 {[%clk 0:02:50.5]} 9... Qb6 {[%clk
0:02:26.4]} 10. c3 {[%clk 0:02:33.6]} 10... c4+ {[%clk 0:02:15.8]} 11. d4 {[%clk
0:02:32.2]} 11... h5 {[%clk 0:02:12.1]} 12. a4 {[%clk 0:02:20]} 12... h4 {[%clk
0:02:07.8]} 13. g4 {[%clk 0:02:19.1]} 13... Ng3 {[%clk 0:02:06.9]} 14. Rf2
{[%clk 0:02:18.5]} 14... Bd6 {[%clk 0:02:05.1]} 15. e3 {[%clk 0:02:15.4]} 15...
Qc7 {[%clk 0:02:00.3]} 16. Rg2 {[%clk 0:02:14.5]} 16... O-O-O {[%clk 0:01:55.1]}
17. Na3 {[%clk 0:02:09]} 17... a6 {[%clk 0:01:53.1]} 18. Rb1 {[%clk 0:01:46.4]}
18... Kb8 {[%clk 0:01:37.8]} 19. b4 {[%clk 0:01:45.7]} 19... cxb3 {[%clk
0:01:35.8]} 20. Rxb3 {[%clk 0:01:45.5]} 20... Na5 {[%clk 0:01:33.9]} 21. Rb1
{[%clk 0:01:42]} 21... Rc8 {[%clk 0:01:32.2]} 22. c4 {[%clk 0:01:38.2]} 22...
Bxa3 {[%clk 0:01:24.7]} 23. Bxa3 {[%clk 0:01:35.8]} 23... Nxc4 {[%clk
0:01:23.9]} 24. Bc5 {[%clk 0:01:33.7]} 24... f5 {[%clk 0:01:15.2]} 25. g5 {[%clk
0:01:30.9]} 25... Ne4 {[%clk 0:01:12.8]} 26. Bxe4 {[%clk 0:01:25.5]} 26... fxe4
{[%clk 0:01:11.1]} 27. Rg4 {[%clk 0:01:01.1]} 27... Qa5 {[%clk 0:01:04.3]} 28.
Qxa5 {[%clk 0:00:48.8]} 28... Nxa5 {[%clk 0:01:03]} 29. Rb6 {[%clk 0:00:41]}
29... Rc6 {[%clk 0:00:58.2]} 30. Rxc6 {[%clk 0:00:38.6]} 30... Nxc6 {[%clk
0:00:54.1]} 31. Bd6+ {[%clk 0:00:35.3]} 31... Kc8 {[%clk 0:00:52.4]} 32. g6
{[%clk 0:00:34.4]} 32... Kd7 {[%clk 0:00:48.9]} 33. Be5 {[%clk 0:00:31.8]} 33...
Nxe5 {[%clk 0:00:47.9]} 34. fxe5 {[%clk 0:00:32]} 34... Rh6 {[%clk 0:00:45.9]}
35. Kf2 {[%clk 0:00:31.2]} 35... b5 {[%clk 0:00:44.9]} 36. axb5 {[%clk
0:00:30.6]} 36... axb5 {[%clk 0:00:44.7]} 37. Ke2 {[%clk 0:00:31.3]} 37... b4
{[%clk 0:00:44.6]} 38. Kd2 {[%clk 0:00:31.3]} 38... Kc6 {[%clk 0:00:45.2]} 39.
Kc2 {[%clk 0:00:31.2]} 39... Kb5 {[%clk 0:00:45.1]} 40. Kb3 {[%clk 0:00:31.4]}
40... Rh8 {[%clk 0:00:39.4]} 41. Rg5 {[%clk 0:00:21.1]} 41... Rf8 {[%clk
0:00:33.3]} 42. Rh5 {[%clk 0:00:19.7]} 42... Rf3 {[%clk 0:00:32.5]} 43. Rh7
{[%clk 0:00:18.8]} 43... Rxe3+ {[%clk 0:00:32]} 44. Kb2 {[%clk 0:00:19.6]} 44...
Kc4 {[%clk 0:00:29.1]} 45. Rxg7 {[%clk 0:00:19.3]} 45... Re2+ {[%clk 0:00:29.1]}
46. Kb1 {[%clk 0:00:18.5]} 46... Kb3 {[%clk 0:00:26]} 47. Kc1 {[%clk 0:00:18.6]}
47... Rg2 {[%clk 0:00:23.6]} 48. Rh7 {[%clk 0:00:06.6]} 48... Kc3 {[%clk
0:00:20.4]} 49. Rxh4 {[%clk 0:00:07.5]} 49... Rg1# {[%clk 0:00:18.7]} 0-1

[Event "*** SCC Grand Prix: Titled Tuesday Blitz"]
[Site "Chess.com"]
[Date "2020.06.23"]
[Round "4"]
[White "Stormeman100100"]
[Black "Fortitudine"]
[Result "1/2-1/2"]
[WhiteElo "2475"]
[BlackElo "2260"]
[TimeControl "180+1"]
[EndTime "10:40:00 PDT"]
[Termination "Game drawn by repetition"]

1. e4 {[%clk 0:03:00.9]} 1... c5 {[%clk 0:02:59.4]} 2. Nf3 {[%clk 0:02:59.3]}
2... d6 {[%clk 0:02:59.6]} 3. Bb5+ {[%clk 0:02:42.8]} 3... Nd7 {[%clk 0:02:59]}
4. O-O {[%clk 0:02:40.8]} 4... Nf6 {[%clk 0:02:57.8]} 5. Re1 {[%clk 0:02:40.7]}
5... a6 {[%clk 0:02:54.9]} 6. Bf1 {[%clk 0:02:41.3]} 6... b5 {[%clk 0:02:52.9]}
7. a4 {[%clk 0:02:39.7]} 7... b4 {[%clk 0:02:49.7]} 8. d4 {[%clk 0:02:39.2]}
8... cxd4 {[%clk 0:02:49.7]} 9. Qxd4 {[%clk 0:02:39]} 9... Qb6 {[%clk
0:02:36.1]} 10. Qxb6 {[%clk 0:02:34.8]} 10... Nxb6 {[%clk 0:02:37]} 11. e5
{[%clk 0:02:35.2]} 11... dxe5 {[%clk 0:02:31.7]} 12. Nxe5 {[%clk 0:02:36.1]}
12... Bb7 {[%clk 0:02:16.5]} 13. a5 {[%clk 0:02:33.6]} 13... Nbd5 {[%clk
0:02:08.9]} 14. c4 {[%clk 0:02:25.9]} 14... bxc3 {[%clk 0:02:07]} 15. Nxc3
{[%clk 0:02:25]} 15... e6 {[%clk 0:01:45.8]} 16. Bg5 {[%clk 0:02:03.2]} 16...
Bb4 {[%clk 0:01:08.9]} 17. Nd3 {[%clk 0:01:48.6]} 17... Bxc3 {[%clk 0:00:43.4]}
18. bxc3 {[%clk 0:01:46.9]} 18... Nxc3 {[%clk 0:00:43.9]} 19. Rec1 {[%clk
0:01:43.5]} 19... Nfd5 {[%clk 0:00:22.3]} 20. Nc5 {[%clk 0:01:41.6]} 20... Bc8
{[%clk 0:00:22.4]} 21. Bd2 {[%clk 0:01:36.5]} 21... Nb5 {[%clk 0:00:19.6]} 22.
Rab1 {[%clk 0:01:27.3]} 22... Nbc7 {[%clk 0:00:14.8]} 23. Na4 {[%clk 0:01:02.6]}
23... O-O {[%clk 0:00:13.3]} 24. Nb6 {[%clk 0:01:01.6]} 24... Rb8 {[%clk
0:00:12]} 25. Rxc7 {[%clk 0:00:50.6]} 25... Nxc7 {[%clk 0:00:10.2]} 26. Bf4
{[%clk 0:00:50.3]} 26... Rb7 {[%clk 0:00:07.6]} 27. Rc1 {[%clk 0:00:46.7]} 27...
Nd5 {[%clk 0:00:05.7]} 28. Nxd5 {[%clk 0:00:46.4]} 28... exd5 {[%clk 0:00:05.2]}
29. Bxa6 {[%clk 0:00:46.2]} 29... Rb4 {[%clk 0:00:03.8]} 30. Bd6 {[%clk
0:00:42.2]} 30... Bxa6 {[%clk 0:00:02.2]} 31. Bxb4 {[%clk 0:00:37.1]} 31... Rc8
{[%clk 0:00:02.3]} 32. Rd1 {[%clk 0:00:33.6]} 32... Bc4 {[%clk 0:00:02.4]} 33.
f3 {[%clk 0:00:27]} 33... f6 {[%clk 0:00:02.1]} 34. Kf2 {[%clk 0:00:27]} 34...
Rc6 {[%clk 0:00:02.7]} 35. Re1 {[%clk 0:00:25.7]} 35... Kf7 {[%clk 0:00:03.6]}
36. Re7+ {[%clk 0:00:25.1]} 36... Kg6 {[%clk 0:00:04.2]} 37. Rb7 {[%clk
0:00:24.7]} 37... Ba6 {[%clk 0:00:04.2]} 38. Ra7 {[%clk 0:00:23.5]} 38... Bb5
{[%clk 0:00:03.9]} 39. Bf8 {[%clk 0:00:22.8]} 39... Kf5 {[%clk 0:00:03.4]} 40.
Bxg7 {[%clk 0:00:20]} 40... Rc2+ {[%clk 0:00:03.9]} 41. Kg3 {[%clk 0:00:18.1]}
41... Bf1 {[%clk 0:00:04.3]} 42. Kh4 {[%clk 0:00:15.3]} 42... Rxg2 {[%clk
0:00:04.4]} 43. Bf8 {[%clk 0:00:13.1]} 43... Rxh2+ {[%clk 0:00:04.4]} 44. Kg3
{[%clk 0:00:13.1]} 44... Rg2+ {[%clk 0:00:04.9]} 45. Kh4 {[%clk 0:00:12.5]}
45... Rh2+ {[%clk 0:00:03.8]} 46. Kg3 {[%clk 0:00:12.4]} 46... Rg2+ {[%clk
0:00:04.4]} 47. Kh4 {[%clk 0:00:11.4]} 47... Rh2+ {[%clk 0:00:04.9]} 1/2-1/2

[Event "*** SCC Grand Prix: Titled Tuesday Blitz"]
[Site "Chess.com"]
[Date "2020.06.23"]
[Round "4"]
[White "Volodar_Murzin"]
[Black "chenxiaoyuer"]
[Result "1-0"]
[WhiteElo "2703"]
[BlackElo "2361"]
[TimeControl "180+1"]
[EndTime "10:40:01 PDT"]
[Termination "Volodar_Murzin won by resignation"]

1. e4 {[%clk 0:03:00.9]} 1... c5 {[%clk 0:02:59.7]} 2. Nf3 {[%clk 0:03:00.2]}
2... d6 {[%clk 0:02:59.5]} 3. Bb5+ {[%clk 0:03:00.8]} 3... Bd7 {[%clk
0:02:59.3]} 4. Bxd7+ {[%clk 0:03:01]} 4... Nxd7 {[%clk 0:03:00.2]} 5. O-O {[%clk
0:03:01.8]} 5... Ngf6 {[%clk 0:03:00.2]} 6. Re1 {[%clk 0:03:02]} 6... e6 {[%clk
0:02:49.9]} 7. c3 {[%clk 0:03:00.4]} 7... Be7 {[%clk 0:02:49.4]} 8. d4 {[%clk
0:03:00.2]} 8... O-O {[%clk 0:02:49.1]} 9. Nbd2 {[%clk 0:02:58.6]} 9... Rc8
{[%clk 0:02:44.4]} 10. a3 {[%clk 0:02:55.6]} 10... Re8 {[%clk 0:02:37.5]} 11.
Nf1 {[%clk 0:02:55.1]} 11... cxd4 {[%clk 0:02:35]} 12. cxd4 {[%clk 0:02:56]}
12... d5 {[%clk 0:02:34.6]} 13. e5 {[%clk 0:02:56.2]} 13... Ne4 {[%clk
0:02:34.4]} 14. Ng3 {[%clk 0:02:56.4]} 14... Nxg3 {[%clk 0:02:12.9]} 15. hxg3
{[%clk 0:02:57.3]} 15... Qb6 {[%clk 0:02:10.2]} 16. Re2 {[%clk 0:02:53.4]} 16...
Rc4 {[%clk 0:02:08.7]} 17. Be3 {[%clk 0:02:46.2]} 17... Rec8 {[%clk 0:02:06.9]}
18. g4 {[%clk 0:02:44.9]} 18... Qc6 {[%clk 0:01:59.7]} 19. Qe1 {[%clk
0:02:34.6]} 19... a5 {[%clk 0:01:49.1]} 20. Qxa5 {[%clk 0:02:20.7]} 20... b5
{[%clk 0:01:30.4]} 21. Qe1 {[%clk 0:02:19.5]} 21... b4 {[%clk 0:01:23.4]} 22.
axb4 {[%clk 0:02:05]} 22... Bxb4 {[%clk 0:01:22.3]} 23. Qd1 {[%clk 0:02:03.9]}
23... Nb6 {[%clk 0:01:14.2]} 24. b3 {[%clk 0:01:55.3]} 24... Rc3 {[%clk
0:00:59.8]} 25. Bd2 {[%clk 0:01:52.4]} 25... Rd3 {[%clk 0:00:58.3]} 26. Qb1
{[%clk 0:01:38.9]} 26... Bc3 {[%clk 0:00:46.2]} 27. Ra2 {[%clk 0:01:18.7]} 27...
Qb5 {[%clk 0:00:36.6]} 28. b4 {[%clk 0:00:55.9]} 28... Bxd2 {[%clk 0:00:35.2]}
29. Rexd2 {[%clk 0:00:56.1]} 29... Rdc3 {[%clk 0:00:29.2]} 30. Rdc2 {[%clk
0:00:52.6]} 30... Qd3 {[%clk 0:00:17.3]} 31. Ne1 {[%clk 0:00:52.6]} 31... Qxd4
{[%clk 0:00:17]} 32. Rxc3 {[%clk 0:00:52.6]} 32... Qxc3 {[%clk 0:00:15.6]} 33.
Nf3 {[%clk 0:00:47.1]} 33... Rc4 {[%clk 0:00:10.2]} 34. b5 {[%clk 0:00:34.4]}
34... Rxg4 {[%clk 0:00:07.1]} 35. Qd1 {[%clk 0:00:26.5]} 35... g6 {[%clk
0:00:06.1]} 36. Ra6 {[%clk 0:00:24.7]} 36... Nc4 {[%clk 0:00:05.9]} 37. Ra8+
{[%clk 0:00:23]} 37... Kg7 {[%clk 0:00:05.7]} 38. Rc8 {[%clk 0:00:21.3]} 38...
Re4 {[%clk 0:00:05.4]} 39. Rc7 {[%clk 0:00:18.3]} 39... Qb4 {[%clk 0:00:05.2]}
40. Kh2 {[%clk 0:00:15.4]} 40... Rf4 {[%clk 0:00:05]} 41. Ng5 {[%clk 0:00:14.2]}
41... Nxe5 {[%clk 0:00:04.5]} 42. Nxe6+ {[%clk 0:00:14.1]} 42... Kf6 {[%clk
0:00:03.4]} 43. Nxf4 {[%clk 0:00:11.8]} 43... Qxf4+ {[%clk 0:00:03.3]} 44. Kh1
{[%clk 0:00:12.2]} 44... Ng4 {[%clk 0:00:02.5]} 45. Rc6+ {[%clk 0:00:11.3]}
45... Kg5 {[%clk 0:00:02.5]} 46. Qxd5+ {[%clk 0:00:08.6]} 46... Kh4 {[%clk
0:00:02.3]} 47. g3+ {[%clk 0:00:08.6]} 47... Qxg3 {[%clk 0:00:02.1]} 48. fxg3+
{[%clk 0:00:09.5]} 48... Kxg3 {[%clk 0:00:01.9]} 1-0

[Event "*** SCC Grand Prix: Titled Tuesday Blitz"]
[Site "Chess.com"]
[Date "2020.06.23"]
[Round "4"]
[White "FairChess_on_YouTube"]
[Black "Angry_Twin"]
[Result "1-0"]
[WhiteElo "2991"]
[BlackElo "2794"]
[TimeControl "180+1"]
[EndTime "10:40:03 PDT"]
[Termination "FairChess_on_YouTube won by resignation"]

1. e4 {[%clk 0:03:00.9]} 1... c5 {[%clk 0:02:59.8]} 2. Nc3 {[%clk 0:03:00.3]}
2... a6 {[%clk 0:02:58.2]} 3. Nge2 {[%clk 0:02:56.9]} 3... e6 {[%clk 0:02:57.7]}
4. g3 {[%clk 0:02:55.5]} 4... b5 {[%clk 0:02:57.5]} 5. Bg2 {[%clk 0:02:55]} 5...
Bb7 {[%clk 0:02:58.2]} 6. d4 {[%clk 0:02:52.5]} 6... cxd4 {[%clk 0:02:57.8]} 7.
Nxd4 {[%clk 0:02:53]} 7... Nf6 {[%clk 0:02:58.4]} 8. O-O {[%clk 0:02:52.5]} 8...
b4 {[%clk 0:02:58.9]} 9. Na4 {[%clk 0:02:51.9]} 9... Bxe4 {[%clk 0:02:58.7]} 10.
Bxe4 {[%clk 0:02:45.4]} 10... Nxe4 {[%clk 0:02:59.6]} 11. Re1 {[%clk 0:02:45.1]}
11... Nc5 {[%clk 0:02:59.8]} 12. Qf3 {[%clk 0:02:14.5]} 12... Ra7 {[%clk
0:02:56.4]} 13. Nxc5 {[%clk 0:01:50.5]} 13... Bxc5 {[%clk 0:02:56]} 14. Nb3
{[%clk 0:01:46]} 14... Bb6 {[%clk 0:02:32.1]} 15. Qg4 {[%clk 0:01:28.7]} 15...
O-O {[%clk 0:02:31.4]} 16. Qxb4 {[%clk 0:01:28]} 16... d5 {[%clk 0:02:24.2]} 17.
Be3 {[%clk 0:01:23.8]} 17... Bxe3 {[%clk 0:02:21.9]} 18. Rxe3 {[%clk 0:01:24.7]}
18... Nc6 {[%clk 0:02:21.1]} 19. Qd2 {[%clk 0:01:23.9]} 19... Qc7 {[%clk
0:02:18.7]} 20. Rc3 {[%clk 0:01:21]} 20... Qd6 {[%clk 0:02:10.2]} 21. Nd4 {[%clk
0:01:17.3]} 21... Ne5 {[%clk 0:01:38.7]} 22. Qf4 {[%clk 0:01:13.2]} 22... Nc4
{[%clk 0:01:03.1]} 23. Qxd6 {[%clk 0:01:06.6]} 23... Nxd6 {[%clk 0:01:04]} 24.
Rc6 {[%clk 0:01:03.8]} 24... Nc4 {[%clk 0:00:58.9]} 25. b3 {[%clk 0:01:00.3]}
25... Ne5 {[%clk 0:00:58.8]} 26. Rc5 {[%clk 0:00:57.8]} 26... g6 {[%clk
0:00:52.7]} 27. Kf1 {[%clk 0:00:49.6]} 27... Nd7 {[%clk 0:00:47.5]} 28. Rc6
{[%clk 0:00:45.7]} 28... Ne5 {[%clk 0:00:47.6]} 29. Rc3 {[%clk 0:00:40.1]} 29...
Rb7 {[%clk 0:00:43.4]} 30. Re1 {[%clk 0:00:39.7]} 30... Nd7 {[%clk 0:00:42.9]}
31. a4 {[%clk 0:00:37.8]} 31... Nf6 {[%clk 0:00:36.5]} 32. Rc6 {[%clk
0:00:37.1]} 32... Ra8 {[%clk 0:00:35.5]} 33. f3 {[%clk 0:00:32.8]} 33... Kg7
{[%clk 0:00:22.3]} 34. a5 {[%clk 0:00:30.9]} 34... Nd7 {[%clk 0:00:20.3]} 35. f4
{[%clk 0:00:26]} 35... Nb8 {[%clk 0:00:20]} 36. Rc8 {[%clk 0:00:23.1]} 36...
Raa7 {[%clk 0:00:19.5]} 37. c3 {[%clk 0:00:19.6]} 37... h5 {[%clk 0:00:07.8]}
38. b4 {[%clk 0:00:19.6]} 38... Kf6 {[%clk 0:00:08]} 39. Kf2 {[%clk 0:00:19.3]}
39... Ke7 {[%clk 0:00:08.3]} 40. Rxb8 {[%clk 0:00:17.3]} 40... Rxb8 {[%clk
0:00:07.5]} 41. Nc6+ {[%clk 0:00:17.4]} 41... Kd6 {[%clk 0:00:07.6]} 42. Nxb8
{[%clk 0:00:17.5]} 42... Kc7 {[%clk 0:00:06.9]} 43. Nxa6+ {[%clk 0:00:15.7]}
43... Rxa6 {[%clk 0:00:07.8]} 44. Ke3 {[%clk 0:00:14.5]} 44... Kc6 {[%clk
0:00:08.3]} 45. Kd4 {[%clk 0:00:13.6]} 45... Kb5 {[%clk 0:00:08.8]} 46. Ke5
{[%clk 0:00:12.4]} 46... Rc6 {[%clk 0:00:09]} 47. Re3 {[%clk 0:00:12.8]} 47...
Kc4 {[%clk 0:00:09.5]} 48. Kf6 {[%clk 0:00:11.9]} 48... d4 {[%clk 0:00:09.9]}
49. cxd4 {[%clk 0:00:11.5]} 49... Kxd4 {[%clk 0:00:10.4]} 50. Ra3 {[%clk
0:00:11.5]} 1-0